bitfinex/quotes_ETHUSD_20230102
["timestamp","ask_amount","ask_price","bid_price","bid_amount"]
[1672697049695,3.68675845,1219.8,1219.7,5.78333595]
[1672697050906,11.88481845,1219.8,1219.7,5.78333595]
[1672697051274,11.88681845,1219.8,1219.7,5.78033595]
[1672697051482,3.68675845,1219.8,1219.7,5.78333595]
[1672697051711,20.08287845,1219.8,1219.7,5.78333595]
[1672697051948,28.89401124,1219.8,1219.7,5.78333595]
[1672697052132,28.89401124,1219.8,1219.7,2.78333595]
[1672697052370,28.89401124,1219.8,1219.7,2.68433595]
[1672697053406,33.89401124,1219.8,1219.7,2.68433595]
[1672697053848,25.69595124,1219.8,1219.7,2.68433595]
[1672697055400,9.29983124,1219.8,1219.7,2.68433595]
[1672697055622,17.49789124,1219.8,1219.7,2.68433595]
[1672697056025,17.49789124,1219.8,1219.6,0.099]
[1672697056248,3.68747037,1219.7,1219.5,41.25439805]
[1672697056474,3.68747037,1219.7,1219.5,11.30439805]
[1672697056834,3.68747037,1219.7,1219.5,13.988734]
[1672697057489,3.68747037,1219.7,1219.5,22.188814]
[1672697059321,3.68747037,1219.7,1219.5,30.388894]
[1672697068009,3.68747037,1219.7,1219.5,30.38665789]
[1672697069341,3.68747037,1219.7,1219.6,0.94438348]
[1672697069720,3.68747037,1219.7,1219.6,4.94438348]
[1672697071147,3.68747037,1219.7,1219.6,29.54258348]
[1672697071507,3.75347037,1219.8,1219.6,32.64158348]
[1672697071714,3.68747037,1219.8,1219.6,29.64158348]
[1672697072078,3.68747037,1219.8,1219.7,2.68433595]
[1672697072459,3.68747037,1219.8,1219.7,27.28052595]
[1672697072686,3.68747037,1219.8,1219.7,27.37952595]
[1672697073085,3.68747037,1219.8,1219.7,19.18079595]
[1672697073274,3.68747037,1219.8,1219.7,10.98206595]
[1672697073905,3.68747037,1219.8,1219.7,2.78333595]
[1672697074099,3.68747037,1219.8,1219.7,6.68433595]
[1672697074314,3.68747037,1219.8,1219.7,2.78333595]
[1672697074526,3.68747037,1219.8,1219.7,2.68433595]
[1672697076052,3.68747037,1219.8,1219.7,6.68433595]
[1672697076212,3.68747037,1219.8,1219.7,6.78333595]
[1672697076657,3.68747037,1219.8,1219.7,2.78333595]
[1672697076850,3.68747037,1219.8,1219.7,2.68433595]
[1672697077463,21.17224124,1219.9,1219.7,2.68433595]
[1672697077672,3.68852525,1219.8,1219.7,10.88306595]
[1672697077905,21.17223124,1219.9,1219.7,2.78333595]
[1672697078095,3.68856362,1219.8,1219.7,2.68433595]
[1672697078468,3.68856362,1219.8,1219.7,19.08166595]
[1672697078632,3.68856362,1219.8,1219.7,19.18066595]
[1672697079254,4.29983124,1219.8,1219.7,19.18066595]
[1672697079826,12.97483124,1219.9,1219.7,19.18066595]
[1672697080088,12.90883124,1219.9,1219.7,19.18066595]
[1672697080258,3.68939432,1219.8,1219.7,19.18066595]
[1672697080470,3.68939432,1219.8,1219.7,10.98193595]
[1672697081043,3.68939432,1219.8,1219.7,19.18066595]
[1672697082406,12.97483124,1219.9,1219.8,1.22147139]
[1672697082407,3.75539432,1219.9,1219.8,1.22147139]
[1672697082667,3.75539432,1219.9,1219.8,9.41953139]
[1672697082668,8.68939432,1219.9,1219.8,9.41953139]
[1672697082874,5.0,1219.9,1219.8,9.51853139]
[1672697083199,5.0,1219.9,1219.8,1.32047139]
[1672697083422,5.0,1219.9,1219.8,1.22147139]
[1672697083566,5.0,1219.9,1219.8,9.41953139]
[1672697083782,5.0,1219.9,1219.8,17.71659139]
[1672697084345,8.68939432,1219.9,1219.8,17.71659139]
[1672697084892,5.0,1219.9,1219.8,17.71659139]
[1672697088509,8.68939432,1219.9,1219.8,1.32047139]
[1672697088887,8.81939432,1219.9,1219.8,1.22147139]
[1672697089067,5.13,1219.9,1219.8,1.22147139]
[1672697089501,4.9,1219.9,1219.8,17.61759139]
[1672697089823,4.9,1219.9,1219.8,17.61659139]
[1672697090364,4.9,1219.9,1219.8,25.81465139]
[1672697090725,5.17463043,1220.0,1219.8,25.81465139]
[1672697090942,5.10863043,1220.0,1219.8,17.61659139]
[1672697092729,1.41923611,1220.0,1219.8,17.61659139]
[1672697095104,5.10863043,1220.0,1219.8,17.61659139]
[1672697096027,1.41923611,1220.0,1219.8,17.61659139]
[1672697096200,20.61715432,1220.1,1219.8,17.61659139]
[1672697096201,18.34476,1220.1,1219.8,17.61659139]
[1672697096405,13.77199432,1220.1,1219.8,25.81465139]
[1672697096718,13.77199432,1220.1,1219.8,17.61659139]
[1672697096907,10.0826,1220.1,1219.8,17.61659139]
[1672697097119,18.27865,1220.1,1219.8,17.61659139]
[1672697097348,21.96804432,1220.1,1219.8,9.41853139]
[1672697099648,18.27865,1220.1,1219.8,17.61659139]
[1672697100017,9.4672,1220.1,1219.8,25.81465139]
[1672697100436,9.4672,1220.1,1219.9,4.0]
[1672697100643,5.0,1220.0,1219.9,12.19705]
[1672697100911,5.0,1220.0,1219.9,20.49344]
[1672697101745,5.0,1220.0,1219.9,28.69083]
[1672697102969,5.0,1220.0,1219.9,24.69083]
[1672697104367,5.0,1220.0,1219.9,16.49344]
[1672697106600,5.0,1220.0,1219.9,8.29605]
[1672697106812,5.0,1220.0,1219.9,0.099]
[1672697107021,5.0,1220.0,1219.8,17.61564139]
[1672697109464,5.0,1220.0,1219.8,9.41798139]
[1672697109843,5.0,1220.0,1219.8,17.61604139]
[1672697110525,5.0,1220.0,1219.8,25.81410139]
[1672697111824,5.0,1220.0,1219.8,25.81017021]
[1672697112840,0.066,1220.1,1219.8,25.81017021]
[1672697113019,3.68939432,1220.1,1219.8,33.97707021]
[1672697114188,3.68939432,1220.1,1219.9,4.0]
[1672697114534,5.0,1220.0,1219.9,12.19722]
[1672697114746,5.0,1220.0,1219.9,12.29622]
[1672697115921,5.0,1220.0,1219.9,20.49361]
[1672697116075,0.066,1220.1,1219.9,35.78933595]
[1672697116278,3.68939432,1220.2,1219.9,41.32995931]
[1672697116494,3.68939432,1220.2,1219.9,38.64562336]
[1672697116760,3.68939432,1220.2,1219.9,33.105]
[1672697119204,3.68939432,1220.2,1220.1,2.68433595]
[1672697119501,8.68939432,1220.2,1220.1,19.07641595]
[1672697119664,8.68939432,1220.2,1220.1,19.17541595]
[1672697120400,8.68939432,1220.2,1220.1,27.37145595]
[1672697121267,3.68939432,1220.2,1220.1,27.37145595]
[1672697124283,3.68939432,1220.2,1220.1,19.17541595]
[1672697126464,3.68939432,1220.2,1220.1,27.37145595]
[1672697133986,3.68939432,1220.2,1220.1,19.17541595]
[1672697135331,3.68939432,1220.2,1220.1,10.97937595]
[1672697135543,3.68939432,1220.2,1220.1,10.97578117]
[1672697135753,12.86313124,1220.3,1220.1,10.97578117]
[1672697135964,12.79713124,1220.3,1220.1,10.97578117]
[1672697136338,4.29983124,1220.2,1220.1,2.77974117]
[1672697136500,4.29983124,1220.2,1220.1,2.68074117]
[1672697136704,20.69057124,1220.2,1220.1,2.68074117]
[1672697137289,12.49520124,1220.2,1220.1,2.68074117]
[1672697137435,4.29983124,1220.2,1220.1,2.68074117]
[1672697140653,3.68754507,1220.2,1220.1,19.07282117]
[1672697140840,3.68754507,1220.2,1220.1,19.17182117]
[1672697144064,3.68754507,1220.2,1220.1,27.36786117]
[1672697145172,3.68754507,1220.2,1220.1,19.17182117]
[1672697148645,3.68754507,1220.2,1220.1,27.36786117]
[1672697158248,3.68754507,1220.2,1220.1,27.36526559]
[1672697170121,3.68754507,1220.2,1220.1,19.16922559]
[1672697170657,3.68754507,1220.2,1220.1,27.36526559]
[1672697174534,3.68754507,1220.2,1220.1,19.16922559]
[1672697175319,3.68754507,1220.2,1220.1,2.77714559]
[1672697175534,16.56065124,1220.3,1220.1,2.67814559]
[1672697175829,16.49465124,1220.3,1220.1,2.67814559]
[1672697176108,4.29983124,1220.2,1220.1,2.67814559]
[1672697177342,4.29673639,1220.2,1220.1,2.67814559]
[1672697181754,0.066,1220.3,1220.1,27.26626559]
[1672697181967,13.19710083,1220.4,1220.1,19.16922559]
[1672697181968,21.39123083,1220.4,1220.1,19.16922559]
[1672697182184,29.58536083,1220.4,1220.1,2.77714559]
[1672697182387,8.30389464,1220.3,1220.1,2.67814559]
[1672697182618,4.30389464,1220.2,1220.1,10.87394559]
[1672697182786,4.30389464,1220.2,1220.1,2.77714559]
[1672697182995,4.30389464,1220.2,1220.1,2.67814559]
[1672697184257,4.30389464,1220.2,1220.1,10.87418559]
[1672697184609,4.30389464,1220.2,1220.1,10.97318559]
[1672697184995,4.30389464,1220.2,1220.1,19.16922559]
[1672697185205,4.30389464,1220.2,1220.1,27.36526559]
[1672697185467,4.30389464,1220.2,1220.1,19.16922559]
[1672697187202,4.36989464,1220.3,1220.1,27.36526559]
[1672697187575,4.30389464,1220.3,1220.1,27.36526559]
[1672697188156,4.30389464,1220.2,1220.1,27.36526559]
[1672697188361,4.30389464,1220.2,1220.1,19.16922559]
[1672697191569,3.68823661,1220.2,1220.1,19.16922559]
[1672697193901,4.30389464,1220.2,1220.1,19.16922559]
[1672697194275,8.36989464,1220.3,1220.1,19.16922559]
[1672697194503,8.30389464,1220.3,1220.1,19.16922559]
[1672697194747,4.30389464,1220.3,1220.1,19.16922559]
[1672697195628,3.68854224,1220.2,1220.1,19.16922559]
[1672697197443,3.68854224,1220.2,1220.1,19.16530694]
[1672697198418,4.36989464,1220.3,1220.1,19.16530694]
[1672697198572,3.68869534,1220.2,1220.1,19.16530694]
[1672697206131,4.30389464,1220.2,1220.1,10.96926694]
[1672697206507,4.36989464,1220.3,1220.1,19.16530694]
[1672697206652,4.30389464,1220.3,1220.1,19.16530694]
[1672697207359,3.68901806,1220.2,1220.1,19.16530694]
[1672697208904,4.30389464,1220.2,1220.1,19.16530694]
[1672697209325,3.68909551,1220.2,1220.1,19.16530694]
[1672697209550,3.68909551,1220.2,1220.1,27.36134694]
[1672697214208,4.30389464,1220.2,1220.1,27.36134694]
[1672697215663,4.30389464,1220.2,1220.1,19.16530694]
[1672697215853,4.36989464,1220.3,1220.1,19.16530694]
[1672697216066,3.68958493,1220.2,1220.1,19.16530694]
[1672697219093,3.68958493,1220.2,1220.1,19.16275595]
[1672697219304,3.68958493,1220.2,1220.1,27.35879595]
[1672697219835,3.68958493,1220.2,1220.1,19.16275595]
[1672697220081,3.68958493,1220.2,1220.1,27.35879595]
[1672697220235,3.68958493,1220.2,1220.1,19.16275595]
[1672697220448,3.68958493,1220.2,1220.1,27.35879595]
[1672697224984,3.68958493,1220.2,1220.1,31.50765709]
[1672697225196,3.75558493,1220.3,1220.2,4.0]
[1672697225457,3.68958493,1220.3,1220.2,28.58611]
[1672697225608,3.68958493,1220.3,1220.2,28.68511]
[1672697226698,3.68958493,1220.3,1220.2,24.68511]
[1672697230282,3.68958493,1220.3,1220.2,16.48974]
[1672697230501,4.30389464,1220.3,1220.2,0.099]
[1672697230668,4.30389464,1220.3,1220.1,10.86763595]
[1672697230882,3.6878425,1220.2,1220.1,10.96663595]
[1672697231294,3.6878425,1220.2,1220.1,19.16267595]
[1672697232577,4.30613075,1220.2,1220.1,2.77067595]
[1672697232759,4.30613075,1220.2,1220.1,2.67167595]
[1672697232990,4.30613075,1220.2,1220.1,10.86771595]
[1672697233183,3.6903755,1220.2,1220.1,19.16275595]
[1672697234448,3.6903755,1220.2,1220.1,27.35879595]
[1672697236440,3.68813939,1220.2,1220.1,27.35879595]
[1672697240182,4.30389464,1220.2,1220.1,27.35879595]
[1672697240404,3.68815165,1220.2,1220.1,27.35609503]
[1672697240902,3.75415165,1220.3,1220.1,27.35609503]
[1672697241064,3.68815165,1220.3,1220.1,27.35609503]
[1672697241821,3.68815165,1220.3,1220.2,4.0]
[1672697242179,3.68815165,1220.3,1220.2,16.39074]
[1672697242491,3.68815165,1220.3,1220.2,16.48974]
[1672697243316,3.68815165,1220.3,1220.2,8.29437]
[1672697253996,3.68815165,1220.3,1220.2,16.48974]
[1672697255672,12.51703075,1220.4,1220.2,16.48974]
[1672697255951,12.45103075,1220.4,1220.2,16.48974]
[1672697256254,3.6843256,1220.3,1220.2,16.48974]
[1672697256574,3.6843256,1220.3,1220.2,8.29437]
[1672697256800,12.51703075,1220.4,1220.2,8.29437]
[1672697257097,4.30389464,1220.3,1220.2,8.29437]
[1672697257245,4.30389464,1220.3,1220.2,16.48974]
[1672697257817,12.51703075,1220.4,1220.2,16.48974]
[1672697258026,12.45103075,1220.4,1220.2,16.48974]
[1672697258239,4.30389464,1220.3,1220.2,16.48974]
[1672697258451,4.30389464,1220.3,1220.2,8.29437]
[1672697260303,4.30389464,1220.3,1220.2,0.099]
[1672697260515,4.30389464,1220.3,1220.1,2.66897503]
[1672697261086,12.49872464,1220.3,1220.1,2.66897503]
[1672697261303,4.30389464,1220.2,1220.1,2.66897503]
[1672697262080,8.36989464,1220.3,1220.1,2.66897503]
[1672697262350,8.30389464,1220.3,1220.1,2.66897503]
[1672697262524,3.6882193,1220.2,1220.1,10.86489503]
[1672697262732,3.6882193,1220.2,1220.1,10.96389503]
[1672697264033,3.6882193,1220.2,1220.1,19.15993503]
[1672697264681,3.6882193,1220.2,1220.1,20.05488336]
[1672697265548,3.6882193,1220.2,1220.1,11.85884336]
[1672697266990,3.6882193,1220.2,1220.1,3.66292336]
[1672697267170,3.6882193,1220.2,1220.1,3.56392336]
[1672697267600,3.6882193,1220.2,1220.1,11.75996336]
[1672697267763,3.6882193,1220.2,1220.1,11.85896336]
[1672697268498,3.6882193,1220.2,1220.1,20.05500336]
[1672697272985,3.6882193,1220.2,1220.1,11.85896336]
[1672697273144,12.49926464,1220.2,1220.1,3.66292336]
[1672697273454,12.49926464,1220.2,1220.1,3.56392336]
[1672697274321,4.30389464,1220.2,1220.1,3.56392336]
[1672697275283,12.49926464,1220.2,1220.1,3.56392336]
[1672697275499,13.24533472,1220.2,1220.1,3.56392336]
[1672697275710,34.63607472,1220.2,1220.1,3.56392336]
[1672697276065,36.05207472,1220.2,1220.1,3.56392336]
[1672697276322,35.3030907,1220.2,1220.1,3.56392336]
[1672697276649,35.30532681,1220.2,1220.1,3.56392336]
[1672697276873,35.30531981,1220.2,1220.1,3.56392336]
[1672697277088,31.00434611,1220.2,1220.1,3.56392336]
[1672697277486,36.05431083,1220.2,1220.1,0.8924687]
[1672697278202,31.00434611,1220.2,1220.1,0.8924687]
[1672697278713,31.23434611,1220.2,1220.1,0.8924687]
[1672697279133,35.53363342,1220.2,1220.1,0.8924687]
[1672697279585,31.23434611,1220.2,1220.1,0.8924687]
[1672697280397,35.53339974,1220.2,1220.1,0.8924687]
[1672697285012,31.23434611,1220.2,1220.1,0.8924687]
[1672697285223,35.53209236,1220.2,1220.1,0.8924687]
[1672697286300,23.03897611,1220.2,1220.1,0.8924687]
[1672697286629,27.33601257,1220.2,1220.1,0.8924687]
[1672697287432,28.74101257,1220.2,1220.1,0.8924687]
[1672697287643,37.68931083,1220.2,1220.1,0.8924687]
[1672697287857,46.75617197,1220.2,1220.1,0.8924687]
[1672697288123,42.32150725,1220.2,1220.1,0.8924687]
[1672697288316,47.39736998,1220.2,1220.1,0.8924687]
[1672697288691,47.6497538,1220.2,1220.1,0.8924687]
[1672697288901,48.67626425,1220.2,1220.1,0.8924687]
[1672697289175,53.09226425,1220.2,1220.1,0.8924687]
[1672697290040,53.09226425,1220.2,1220.1,0.12103838]
[1672697290194,61.45786425,1220.2,1220.1,0.12103838]
[1672697290407,8.918,1220.1,1219.7,2.66897503]
[1672697290633,3.68102777,1219.8,1219.7,2.66897503]
[1672697290851,11.87908777,1219.8,1219.7,2.66897503]
[1672697291018,12.10908777,1219.8,1219.7,2.66897503]
[1672697291223,16.62612,1219.8,1219.7,2.66897503]
[1672697291600,21.62612,1219.8,1219.7,2.66897503]
[1672697291824,34.91920777,1219.8,1219.7,2.66897503]
[1672697293361,26.72114777,1219.8,1219.7,2.66897503]
[1672697294213,18.52532388,1219.8,1219.7,2.66897503]
[1672697296443,26.72338388,1219.8,1219.7,2.66897503]
[1672697297123,26.72338388,1219.8,1219.6,0.099]
[1672697297340,5.0,1219.7,1219.5,46.50385]
[1672697297566,5.0,1219.7,1219.5,16.55385]
[1672697297774,5.0,1219.7,1219.5,19.22282503]
[1672697297989,5.0,1219.7,1219.5,10.96792503]
[1672697299110,34.69249777,1219.7,1219.5,2.76797503]
[1672697299345,34.69249777,1219.7,1219.5,2.66897503]
[1672697299549,38.84135891,1219.7,1219.5,2.66897503]
[1672697299765,1.489,1219.6,1219.5,2.66897503]
[1672697299992,17.8878,1219.6,1219.5,2.66897503]
[1672697300280,14.6884,1219.6,1219.5,2.66897503]
[1672697301245,6.49123611,1219.6,1219.5,2.66897503]
[1672697305977,16.10663611,1219.6,1219.5,2.66897503]
[1672697306184,32.50543611,1219.6,1219.4,8.1869]
[1672697306374,32.50543611,1219.6,1219.4,0.099]
[1672697306588,32.50543611,1219.6,1219.3,0.5392599]
[1672697306817,5.0,1219.5,1219.3,0.5392599]
[1672697307023,8.20075,1219.4,1219.3,0.5392599]
[1672697307214,16.4015,1219.4,1219.3,0.5392599]
[1672697307674,13.26631,1219.5,1219.3,0.5392599]
[1672697307675,14.68231,1219.5,1219.3,0.5392599]
[1672697307848,1.489,1219.4,1219.3,0.5392599]
[1672697308410,6.489,1219.4,1219.3,0.5392599]
[1672697310623,6.49123611,1219.4,1219.3,0.5392599]
[1672697312088,4.31863638,1219.4,1219.3,0.5392599]
[1672697314409,4.54863638,1219.4,1219.3,0.5392599]
[1672697314730,4.31863638,1219.4,1219.3,25.1435199]
[1672697314947,0.00223611,1219.4,1219.3,25.2425199]
[1672697315519,0.00223611,1219.4,1219.3,17.0410999]
[1672697315944,0.00223611,1219.4,1219.3,8.8396799]
[1672697316675,5.00223611,1219.4,1219.3,8.8396799]
[1672697317427,5.00223611,1219.4,1219.3,0.6382599]
[1672697317635,5.00223611,1219.4,1219.3,0.5392599]
[1672697323017,5.00223611,1219.4,1219.3,4.5392599]
[1672697323460,5.00223611,1219.4,1219.3,0.5392599]
[1672697325775,0.00223611,1219.4,1219.3,0.5392599]
[1672697326009,1.26123611,1219.4,1219.3,0.5392599]
[1672697326197,13.84084725,1219.4,1219.3,0.5392599]
[1672697326933,13.84084725,1219.4,1219.3,4.5392599]
[1672697326934,10.64009725,1219.4,1219.3,4.5392599]
[1672697328597,10.64009725,1219.4,1219.3,12.7406799]
[1672697328812,10.64009725,1219.4,1219.3,12.8396799]
[1672697329132,10.64009725,1219.4,1219.3,8.8396799]
[1672697332359,14.32112502,1219.4,1219.3,0.6382599]
[1672697332573,14.32112502,1219.4,1219.3,0.5392599]
[1672697332765,9.32312502,1219.4,1219.3,0.5392599]
[1672697332988,9.32112502,1219.4,1219.3,0.5392599]
[1672697333592,4.38109725,1219.4,1219.3,20.9420999]
[1672697333768,5.0,1219.4,1219.3,29.2425199]
[1672697334688,5.0,1219.4,1219.3,29.23861653]
[1672697335594,4.9970878,1219.4,1219.3,29.23861653]
[1672697336703,4.9970878,1219.4,1219.3,35.55837595]
[1672697336932,4.9970878,1219.4,1219.3,29.23861653]
[1672697337278,8.67811557,1219.4,1219.3,29.23861653]
[1672697337804,4.9970878,1219.4,1219.3,29.23861653]
[1672697340371,6.9020878,1219.4,1219.3,51.92261653]
[1672697341199,1.905,1219.4,1219.3,51.92261653]
[1672697341391,5.58602777,1219.4,1219.3,51.92261653]
[1672697342639,10.58602777,1219.4,1219.3,51.92261653]
[1672697345721,10.58602777,1219.4,1219.3,47.92261653]
[1672697346616,10.59178602,1219.4,1219.3,47.92261653]
[1672697352917,6.19953239,1219.4,1219.3,23.31835653]
[1672697353991,11.19953239,1219.4,1219.3,23.31835653]
[1672697355019,11.20153239,1219.4,1219.3,23.31535653]
[1672697355241,11.19953239,1219.4,1219.3,23.31835653]
[1672697355824,11.19953239,1219.4,1219.3,23.31571696]
[1672697359464,19.40028239,1219.4,1219.3,23.31571696]
[1672697360267,27.60103239,1219.4,1219.3,23.31571696]
[1672697361459,19.40028239,1219.4,1219.3,23.31571696]
[1672697362078,11.19953239,1219.4,1219.3,23.31571696]
[1672697364259,15.34839353,1219.4,1219.3,23.31571696]
[1672697364470,15.57839353,1219.4,1219.3,23.31571696]
[1672697365346,11.28386114,1219.4,1219.3,23.31571696]
[1672697365528,16.35677753,1219.4,1219.3,23.31571696]
[1672697365741,11.28386114,1219.4,1219.3,23.31571696]
[1672697366579,15.58316948,1219.4,1219.3,23.31571696]
[1672697366911,15.58316301,1219.4,1219.3,23.31571696]
[1672697367352,19.48461114,1219.4,1219.3,23.31571696]
[1672697368282,23.7831169,1219.4,1219.3,23.31571696]
[1672697369116,19.48461114,1219.4,1219.3,23.31571696]
[1672697369330,11.28386114,1219.4,1219.3,23.31571696]
[1672697369792,15.58207922,1219.4,1219.3,23.31571696]
[1672697370253,23.78282922,1219.4,1219.3,23.31571696]
[1672697371719,18.78282922,1219.4,1219.3,23.31571696]
[1672697372830,23.78282922,1219.4,1219.3,23.31571696]
[1672697373878,23.78178429,1219.4,1219.3,23.31571696]
[1672697374073,23.78185943,1219.4,1219.3,23.31571696]
[1672697374282,19.48461114,1219.4,1219.3,23.31571696]
[1672697376014,11.28386114,1219.4,1219.3,23.31571696]
[1672697376608,15.58103972,1219.4,1219.3,23.31571696]
[1672697376963,11.28386114,1219.4,1219.3,23.31571696]
[1672697377552,12.69986114,1219.4,1219.3,23.31317176]
[1672697377888,16.99696864,1219.4,1219.3,23.31317176]
[1672697378097,25.97352753,1219.4,1219.3,23.31317176]
[1672697378307,20.90061114,1219.4,1219.3,23.31317176]
[1672697378523,25.19772668,1219.4,1219.3,23.31317176]
[1672697379044,16.99697668,1219.4,1219.3,23.31317176]
[1672697379217,17.77277753,1219.4,1219.3,23.31317176]
[1672697379427,12.69986114,1219.4,1219.3,23.31317176]
[1672697380164,16.99734155,1219.4,1219.3,23.31317176]
[1672697381673,16.99763681,1219.4,1219.3,23.31317176]
[1672697381878,12.69986114,1219.4,1219.3,23.31317176]
[1672697382094,16.99765197,1219.4,1219.3,23.31317176]
[1672697382282,22.69077753,1219.4,1219.3,23.31317176]
[1672697383843,17.61786114,1219.4,1219.3,23.31317176]
[1672697384263,17.69077753,1219.4,1219.3,23.31317176]
[1672697384719,12.61786114,1219.4,1219.3,23.31317176]
[1672697385309,17.61786114,1219.4,1219.3,23.31317176]
[1672697385520,22.69077753,1219.4,1219.3,23.31317176]
[1672697386151,17.61786114,1219.4,1219.3,23.31317176]
[1672697386482,22.69077753,1219.4,1219.3,23.31317176]
[1672697387326,17.61786114,1219.4,1219.3,23.31317176]
[1672697387515,22.69077753,1219.4,1219.3,23.31317176]
[1672697388778,17.61786114,1219.4,1219.3,23.31317176]
[1672697389368,21.91707148,1219.4,1219.3,23.31317176]
[1672697389674,17.61786114,1219.4,1219.3,23.31317176]
[1672697390513,21.91781234,1219.4,1219.3,23.31317176]
[1672697391457,16.91781234,1219.4,1219.3,23.31317176]
[1672697391820,21.91781234,1219.4,1219.3,23.31317176]
[1672697393670,22.69077753,1219.4,1219.3,23.31317176]
[1672697396908,17.61786114,1219.4,1219.3,23.31317176]
[1672697397240,21.92254151,1219.4,1219.3,23.31317176]
[1672697397409,17.61786114,1219.4,1219.3,23.31317176]
[1672697397620,16.20186114,1219.4,1219.3,23.31317176]
[1672697398985,21.27477753,1219.4,1219.3,23.31317176]
[1672697401458,16.20186114,1219.4,1219.3,23.31317176]
[1672697402484,16.20186114,1219.4,1219.3,23.31041031]
[1672697402641,16.27477753,1219.4,1219.3,23.31041031]
[1672697403961,21.27477753,1219.4,1219.3,23.31041031]
[1672697406979,47.52218432,1219.4,1219.3,23.31041031]
[1672697407548,41.41981114,1219.4,1219.3,23.31041031]
[1672697408372,47.52218432,1219.4,1219.3,23.31041031]
[1672697408708,41.41981114,1219.4,1219.3,23.31041031]
[1672697409297,42.82981114,1219.4,1219.3,23.31041031]
[1672697409512,48.93218432,1219.4,1219.3,23.31041031]
[1672697412320,48.31648432,1219.4,1219.3,23.31041031]
[1672697416766,48.31848432,1219.4,1219.3,23.30741031]
[1672697416979,48.31648432,1219.4,1219.3,23.31041031]
[1672697417409,43.31648432,1219.4,1219.3,23.31041031]
[1672697417605,44.73248432,1219.4,1219.3,23.31041031]
[1672697418501,43.63011114,1219.4,1219.3,23.31041031]
[1672697418724,49.73248432,1219.4,1219.3,23.31041031]
[1672697420740,49.73248432,1219.4,1219.3,24.20592885]
[1672697422538,42.22011114,1219.4,1219.3,24.20592885]
[1672697422755,42.22011114,1219.4,1219.3,24.20367949]
[1672697423428,48.32248432,1219.4,1219.3,24.20367949]
[1672697423636,42.22011114,1219.4,1219.3,24.20367949]
[1672697424432,37.22011114,1219.4,1219.3,24.20367949]
[1672697425527,34.01936114,1219.4,1219.3,24.20367949]
[1672697425969,39.10010069,1219.4,1219.3,24.20367949]
[1672697426199,34.01936114,1219.4,1219.3,24.20367949]
[1672697426424,21.05274171,1219.4,1219.3,24.20367949]
[1672697426613,15.97186114,1219.4,1219.3,32.40509949]
[1672697426952,20.27357059,1219.4,1219.3,24.20367949]
[1672697427165,15.97186114,1219.4,1219.3,24.20367949]
[1672697427325,21.05274171,1219.4,1219.3,24.20367949]
[1672697427729,15.97186114,1219.4,1219.3,24.20367949]
[1672697428192,16.20186114,1219.4,1219.3,24.20367949]
[1672697429554,20.503493,1219.4,1219.3,24.20367949]
[1672697430466,16.20186114,1219.4,1219.3,24.20367949]
[1672697433494,20.50378439,1219.4,1219.3,24.20367949]
[1672697434345,20.50378439,1219.4,1219.3,32.40509949]
[1672697434662,15.58578439,1219.4,1219.3,40.60651949]
[1672697434828,11.20692325,1219.4,1219.3,31.06396449]
[1672697435018,11.20692325,1219.4,1219.3,22.86254449]
[1672697435458,36.6775205,1219.4,1219.3,22.86254449]
[1672697435692,37.2952205,1219.4,1219.3,22.85954449]
[1672697435898,37.2932205,1219.4,1219.3,22.86254449]
[1672697436085,29.0924705,1219.4,1219.3,22.86254449]
[1672697436554,29.3224705,1219.4,1219.3,22.86254449]
[1672697437562,28.7067705,1219.4,1219.3,22.86254449]
[1672697438200,36.9075205,1219.4,1219.3,22.86254449]
[1672697438970,32.60559725,1219.4,1219.3,22.86254449]
[1672697439853,37.68673769,1219.4,1219.3,22.86254449]
[1672697442269,29.48598769,1219.4,1219.3,22.86254449]
[1672697442590,24.48598769,1219.4,1219.3,22.86254449]
[1672697443009,16.28523769,1219.4,1219.3,22.86254449]
[1672697443422,21.28300158,1219.4,1219.3,22.86254449]
[1672697445268,16.20186114,1219.4,1219.3,22.86254449]
[1672697445486,16.20186114,1219.4,1219.3,31.06396449]
[1672697445487,20.50430304,1219.4,1219.3,31.06396449]
[1672697445936,20.50430304,1219.4,1219.3,22.86254449]
[1672697446223,15.58630304,1219.4,1219.3,22.86254449]
[1672697446739,15.58630304,1219.4,1219.3,31.06396449]
[1672697447109,11.4374419,1219.4,1219.3,31.06396449]
[1672697447325,11.4374419,1219.4,1219.3,22.86254449]
[1672697449797,12.21614044,1219.4,1219.3,22.86254449]
[1672697449965,7.135,1219.4,1219.3,22.86254449]
[1672697451657,11.2075522,1219.4,1219.3,22.86254449]
[1672697454926,19.4083022,1219.4,1219.3,22.86254449]
[1672697457447,19.4083022,1219.4,1219.3,22.85942535]
[1672697458389,14.4083022,1219.4,1219.3,22.85942535]
[1672697459332,19.4083022,1219.4,1219.3,22.85942535]
[1672697460841,15.10575,1219.4,1219.3,22.85942535]
[1672697461174,32.76650158,1219.4,1219.3,22.85942535]
[1672697461346,24.56575158,1219.4,1219.3,22.85942535]
[1672697461559,16.36500158,1219.4,1219.3,22.85942535]
[1672697461769,24.56575158,1219.4,1219.3,22.85942535]
[1672697461999,32.76650158,1219.4,1219.3,22.85942535]
[1672697462207,40.96725158,1219.4,1219.3,22.85942535]
[1672697462615,24.56575158,1219.4,1219.3,22.85942535]
[1672697464093,24.56775158,1219.4,1219.3,22.85642535]
[1672697464441,24.56575158,1219.4,1219.3,22.85942535]
[1672697468335,19.56575158,1219.4,1219.3,22.85942535]
[1672697469197,24.56575158,1219.4,1219.3,22.85942535]
[1672697469560,16.36500158,1219.4,1219.3,22.85942535]
[1672697474600,16.36500158,1219.4,1219.3,22.80942535]
[1672697475226,11.36500158,1219.4,1219.3,22.80942535]
[1672697475687,11.36252276,1219.4,1219.3,22.80942535]
[1672697475968,16.36606611,1219.4,1219.3,22.80942535]
[1672697482067,16.28406611,1219.4,1219.3,22.80942535]
[1672697482282,42.15138467,1219.4,1219.3,22.80942535]
[1672697482491,47.15138467,1219.4,1219.3,22.80942535]
[1672697484704,47.76708467,1219.4,1219.3,22.80942535]
[1672697487450,46.7509135,1219.4,1219.3,22.80942535]
[1672697488559,41.66971614,1219.4,1219.3,22.80942535]
[1672697489140,47.76708467,1219.4,1219.3,22.80942535]
[1672697490127,47.15138467,1219.4,1219.3,22.80942535]
[1672697492414,41.05401614,1219.4,1219.3,22.80942535]
[1672697492615,46.13472181,1219.4,1219.3,22.80942535]
[1672697493751,41.05401614,1219.4,1219.3,22.80942535]
[1672697494417,40.80163232,1219.4,1219.3,22.80942535]
[1672697494905,46.89900085,1219.4,1219.3,22.80942535]
[1672697495153,45.88299726,1219.4,1219.3,22.80942535]
[1672697495371,40.80163232,1219.4,1219.3,22.80942535]
[1672697496282,40.80163232,1219.4,1219.3,22.80672007]
[1672697496956,35.80163232,1219.4,1219.3,22.80672007]
[1672697497435,40.88298997,1219.4,1219.3,22.80672007]
[1672697497586,35.80163232,1219.4,1219.3,22.80672007]